Cogmind - Beta 9.1 @@@ ROGUE MODE // 2019.10.29 @ 22:42:24 Player: MrPainting Result: Destroyed by as-37684 with Assembled Rifle Performance ------------- Evolutions (0) 0 Regions Visited (2) 400 Robots Destroyed (17) 85 Value Destroyed (249) 249 Prototype IDs (0) 0 Alien Tech Used (0) 0 Bonus (0) 0 TOTAL SCORE: 734 Bonus ------- None Cogmind --------- Core Integrity 0/250 Matter 267/300 Energy 96/100 System Corruption 4% Temperature Cool (1) Location -10/Mines Parts ------- Power (1) Propulsion (2) Light Treads Utility (2) High-capacity Storage Unit Signal Interpreter Weapon (2) Heavy Assault Rifle Inventory (12) Ion Engine Ion Engine High-capacity Storage Unit High-capacity Matter Pod (148) Light EM Pulse Cannon Light EM Pulse Cannon Light EM Pulse Cannon Heavy Assault Rifle Heavy Assault Rifle Peak State ------------ Power Ion Engine Propulsion Light Treads Light Treads Utility Small Storage Unit High-capacity Storage Unit Weapon Light EM Pulse Cannon Heavy Assault Rifle Inventory Light EM Pulse Cannon Light EM Pulse Cannon Light EM Pulse Cannon Heavy Assault Rifle Heavy Assault Rifle Heavy Assault Rifle [Rating: 10] Favorites ----------- Power Ion Engine Engine Ion Engine Propulsion Light Treads Treads Light Treads Leg Aluminum Leg Utility High-capacity Storage Unit Storage High-capacity Storage Unit Processor Signal Interpreter Weapon Heavy Assault Rifle Energy Gun EM Pulse Gun Energy Cannon Light EM Pulse Cannon Ballistic Gun Heavy Assault Rifle Build | -11 -10 -10 ------- Run | Scr Mat Min Slots Evolved . | . . . Power . | . . . Propulsion . | . . . Utility . | . . . Weapon . | . . . Parts Attached 16 | 6 7 3 Power 2 | 1 1 . Engine 2 | 1 1 . Core . | . . . Reactor . | . . . Propulsion 6 | 2 2 2 Treads 4 | . 2 2 Leg 2 | 2 . . Wheel . | . . . Hover . | . . . Flight . | . . . Utility 3 | 1 2 . Device . | . . . Storage 2 | 1 1 . Processor 1 | . 1 . Hackware . | . . . Protection . | . . . Artifact . | . . . Weapon 5 | 2 2 1 Energy Gun 2 | 2 . . Energy Cannon 1 | . 1 . Ballistic Gun 2 | . 1 1 Ballistic Cannon . | . . . Launcher . | . . . Special Weapon . | . . . Impact Weapon . | . . . Slashing Weapon . | . . . Piercing Weapon . | . . . Special Melee Weapon . | . . . Unidentified Prototypes . | . . . Parts Lost 6 | . . 6 Power 1 | . . 1 Propulsion 3 | . . 3 Utility . | . . . Weapon 2 | . . 2 Highest Loss Streak 6 | . . 6 Average Slot Usage (%) 90 | . 90 93 Engine 13 | . 14 12 Treads 27 | . 27 26 Storage 14 | . 14 14 Processor 6 | . 5 14 Energy Cannon 13 | . 13 11 Ballistic Gun 13 | . 13 15 Naked Turns . | . . . Heaviest Build 44 | 13 44 44 Greatest Support 40 | 20 40 40 Greatest Overweight (x) 1 | 1 1 1 Average Overweight (x) . | . . . Largest Inventory Capacity 14 | 6 14 12 Average Capacity 10 | 4 10 12 Most Carried 12 | 4 12 12 Average Carried 9 | 3 9 11 Final Capacity 12 | 6 12 12 Final Carried 12 | 3 12 9 Class Distribution -------------------- 100% | Mutant Dominant Class ---------------- Mutant | -10/Materials Mutant | -10/Mines Resources | -11 -10 -10 ----------- Run | Scr Mat Min Matter Collected 568 | 196 372 . Remotely . | . . . Salvage Created 547 | . 530 17 Parts 31 | . 31 . Haulers Intercepted 2 | . 2 . Recyclers Shooed . | . . . Parts Field Recycled . | . . . Retrieved Matter . | . . . Parts Self-Destructed . | . . . Prevented . | . . . Kills | -11 -10 -10 ------- Run | Scr Mat Min Combat Hostiles Destroyed 10 | . 9 1 Guns 2 | . 1 1 Cannons 7 | . 7 . Classes Destroyed 7 | . 6 1 Hauler 2 | . 2 . Recycler 1 | . 1 . Operator 1 | . 1 . Watcher 3 | . 3 . Swarmer 6 | . 6 . Grunt 3 | . 3 . Assembled 1 | . . 1 Best Kill Streak 3 | . 3 1 Combat Bots Only 3 | . 3 1 Max Kills in Single Turn 1 | . 1 1 Gunslinging . | . . . Exploded . | . . . Melee . | . . . Uniques/NPCs Destroyed . | . . . Combat | -11 -10 -10 -------- Run | Scr Mat Min Damage Taken 1109 | . 243 866 Core 250 | . 57 193 Absorbed by Shields . | . . . Core Remaining (%) 100 | 100 . . Volleys Fired 37 | . 30 7 Largest 2 | . 2 2 Hottest 79 | . 79 79 Shots Fired 74 | . 60 14 Gun 41 | . 30 11 Cannon 33 | . 30 3 Launcher . | . . . Special . | . . . Kinetic 41 | . 30 11 Thermal . | . . . Explosive . | . . . Electromagnetic 33 | . 30 3 Robot Hit Streak 8 | . 5 8 Robot Miss Streak 3 | . 3 3 Penetration Max . | . . . Secondary Targets . | . . . Shots Hit Robots 40 | . 30 10 Core Hits 18 | . 16 2 Critical Hits 1 | . 1 . Critical Kills . | . . . Critical Parts Destroyed 1 | . 1 . Melee Attacks . | . . . Impact . | . . . Slashing . | . . . Piercing . | . . . Sneak Attacks . | . . . Combat Hostiles . | . . . Follow-up Attacks . | . . . Damage Inflicted 865 | . 717 148 Guns 229 | . 137 92 Cannons 590 | . 534 56 Explosions 46 | . 46 . Melee . | . . . Ramming . | . . . Kinetic 229 | . 137 92 Thermal 46 | . 46 . Explosive . | . . . Electromagnetic 590 | . 534 56 Impact . | . . . Slashing . | . . . Piercing . | . . . Highest Corruption 4 | . . 4 Average Corruption 4 | . . 4 Corruption Purged . | . . . Overload Shots . | . . . Overflow Damage 3 | . 3 . Projectiles 3 | . 3 . Explosions . | . . . Melee . | . . . Knockbacks . | . . . Impact . | . . . Kinetic . | . . . Secondary . | . . . Self-Inflicted Damage . | . . . Shots . | . . . Rammed . | . . . Targets Rammed . | . . . Kicked . | . . . Crushed . | . . . Highest Temperature 195 | . 195 94 Average Temperature 58 | . 57 62 Received Heat Transfer 231 | . 51 180 Siege Activations . | . . . Robots Corrupted 1 | . 1 . Combat Hostiles 1 | . 1 . Parts Fried 3 | . 3 . Impact Corruptions . | . . . Robots Melted . | . . . Combat Hostiles . | . . . Parts Melted . | . . . Heat Transferred 50 | . 50 . Parts Sabotaged . | . . . Parts Stolen . | . . . Parts Stripped . | . . . Power Chain Reactions 1 | . 1 . Missiles Intercepted . | . . . Alert | -11 -10 -10 ------- Run | Scr Mat Min Peak Influence 184 | . 184 10 Average Influence 43 | . 51 7 Maximum Alert Level . | . . . Low Security (%) 100 | . . . Level 1 . | . . . Level 2 . | . . . Level 3 . | . . . Level 4 . | . . . Level 5 . | . . . High Security . | . . . Max Security . | . . . Squads Dispatched 1 | . 1 . Investigation . | . . . Extermination . | . . . Reinforcement 1 | . 1 . Assault . | . . . Garrison . | . . . Intercept . | . . . Construction Impeded . | . . . Haulers Reinforced . | . . . Stealth | -11 -10 -10 --------- Run | Scr Mat Min Distress Signals . | . . . Communications Jammed . | . . . Distress Signals . | . . . Times Spotted 32 | . 14 18 Peak Tracking Total 17 | . 3 17 Tactical Retreats 2 | . 1 1 Traps | -11 -10 -10 ------- Run | Scr Mat Min Traps Triggered . | . . . Indirectly . | . . . Trap Hack Attempts . | . . . Triggered . | . . . Disarmed . | . . . Reprogrammed . | . . . Reused . | . . . Traps Extracted . | . . . Installed . | . . . Triggered . | . . . Machines | -11 -10 -10 ---------- Run | Scr Mat Min Machines Disabled . | . . . Max in Single Turn . | . . . Machines Sabotaged . | . . . Garrisons Compromised . | . . . Overloaded Fab Kills . | . . . Fab Network Shutdowns . | . . . Hacking | -11 -10 -10 --------- Run | Scr Mat Min Machines Accessed 2 | . 2 . Terminals 2 | . 2 . Fabricators . | . . . Repair Stations . | . . . Recycling Units . | . . . Scanalyzers . | . . . Garrison Access . | . . . Total Hacks 4 | . 4 . Successful 3 | . 3 . Failed 1 | . 1 . Catastrophic 1 | . 1 . Database Lockouts . | . . . Manual . | . . . Terminals 4 | . 4 . Fabricators . | . . . Repair Stations . | . . . Recycling Units . | . . . Scanalyzers . | . . . Garrison Access . | . . . Terminal Hacks 3 | . 3 . Unreport Threat 2 | . 2 . Locate Traps 1 | . 1 . Fabricator Hacks . | . . . Repair Station Hacks . | . . . Recycling Unit Hacks . | . . . Scanalyzer . | . . . Garrison Access Hacks . | . . . Unauthorized Hacks . | . . . Terminals . | . . . Fabricators . | . . . Repair Stations . | . . . Recycling Units . | . . . Scanalyzers . | . . . Garrison Access . | . . . Data Cores Recovered 1 | . 1 . Used . | . . . Hacking Detections . | . . . Full Trace Events . | . . . Feedback Events . | . . . Feedback Blocked . | . . . Robot Schematics Acquired . | . . . Robots Built . | . . . Matter . | . . . Time . | . . . Total Robot Build Rating . | . . . Part Schematics Acquired . | . . . Parts Built . | . . . Matter . | . . . Time . | . . . Total Part Build Rating . | . . . Parts Repaired . | . . . Time . | . . . Parts Recycled . | . . . Recycled Matter . | . . . Retrieved Matter . | . . . Retrieved Components . | . . . Parts Scanalyzed . | . . . Part Schematics Acquired . | . . . Parts Damaged . | . . . Bothacking | -11 -10 -10 ------------ Run | Scr Mat Min Used RIF Installer . | . . . Robots Hacked . | . . . Non-combat . | . . . Combat . | . . . Robot Hacks Applied . | . . . Relay Couplers Released . | . . . Robots Rewired . | . . . Allies Hacked . | . . . Hacks Repelled . | . . . Allies | -11 -10 -10 -------- Run | Scr Mat Min Total Allies . | . . . Largest Group . | . . . Highest-Rated Group . | . . . Highest-Rated Ally . | . . . Total Orders . | . . . Ally Attacks . | . . . Total Damage . | . . . Kills . | . . . Allies Corrupted . | . . . Allies Melted . | . . . Intel | -11 -10 -10 ------- Run | Scr Mat Min Robot Analysis Total . | . . . Derelict Logs Recovered . | . . . Drone Launches . | . . . Drone Recoveries . | . . . Exploration | -11 -10 -10 ------------- Run | Scr Mat Min Turns Passed 1170 | 65 968 137 Spaces Moved 596 | 54 478 64 Core 19 | 19 . . Treads 540 | . 476 64 Legs 37 | 35 2 . Wheels . | . . . Hover . | . . . Flight . | . . . Fastest Speed 50 | 50 120 160 Average Speed 168 | 97 175 178 Slowest Speed 180 | 120 180 180 Overloaded Moves . | . . . Propulsion Burnouts . | . . . Robots Hopped . | . . . Cave-ins Triggered . | . . . Exploration Rate (%) 34 | 4 78 20 Regions Visited 2 Branch Regions 1 Pre-discovered Areas . | . . . Known Exits Taken 1 | . 1 . Unknown Exits Taken 1 | 1 . . Scrap Searched . | . . . Spaces Dug . | . . . Terrain Destroyed 6 | . 6 . Melee . | . . . Projectile . | . . . AOE 6 | . 6 . Actions | -11 -10 -10 --------- Run | Scr Mat Min Total 688 | 65 549 74 Wait 13 | . 13 . Move 594 | 53 477 64 Hop . | . . . Pick Up 21 | 6 15 . Fast Attach 5 | 3 2 . Attach 8 | 3 2 3 Detach . | . . . Swap 3 | . 3 . Drop 7 | . 7 . Fire 37 | . 30 7 Melee . | . . . Ram . | . . . Kick . | . . . Crush . | . . . Escape Stasis . | . . . Rewire . | . . . Trap . | . . . Miscellaneous . | . . . Route ------- -11/Scrapyard -10/Materials (discovered 4 exits: *Mat x3 / *Min) -10/Mines History --------- Turn | Location | Event 10 | -11/Scrapyard | Discovered new exit (range 16) 66 | -11/Scrapyard | Entered Materials 317 | -10/Materials | Build established: Mutant 487 | -10/Materials | Discovered new exit (range 15) 747 | -10/Materials | Discovered new exit (range 13) 769 | -10/Materials | Identified exit to Materials 946 | -10/Materials | Discovered exit to Materials (range 16) 1004 | -10/Materials | Discovered new exit (range 16) 1032 | -10/Materials | Identified exit to Mines 1034 | -10/Materials | Entered Mines 1129 | -10/Mines | Assembled infested the area 1158 | -10/Mines | Core integrity fell below 50% 1171 | -10/Mines | Core integrity fell below 20% 1171 | -10/Mines | Destroyed by as-37684 with Assembled Rifle Last Messages --------------- 01010_ K-01 Serf collects debris. 01016_ Acquired 51 matter. 01019_ K-01 Serf collects debris. 01032_ EXIT=IDENTIFIED: MINES LOCATION=MINES GOAL=ESCAPE Something is scanning the area. 01129_ ALERT: Infestation in the mines, dispatching Demolisher response squad. 01133_ T-07 Excavator destroyed. 01138_ as-29202 destroyed. 01143_ Lgt. EM Pulse Cannon destroyed. 01151_ Destroyed Asb. Hover Unit. 01155_ Hvy. Assault Rifle destroyed. 01157_ Lgt. Treads destroyed. 01158_ Ion Engine destroyed. 01159_ Lgt. Treads destroyed. 01159_ System corrupted by crushing effect (+4). 01165_ as-39004 destroyed. 01169_ Lgt. Treads destroyed. Map ----- +----------------------------------------------------+ | | | | | | | | | | | | | | | | | ?????????????????????????????????????????????????? | | ?????????????????????????????????????????###?????? | | ???????????????????????????????????????## ##????? | | ???????????????????????????????????????# #????? | | ????????????????##?????????????????????# #????? | | ??????????????### ????????????????????# #????? | | ??????????????? ???????????????????# #????? | | ????????????????# ???????????????????# #????? | | ????????? ## ## ??????????????????# #????? | | ???????? $ #?###########????## ##????? | | ????????# ! a ## ##??## #?????? | | ???????????????# aa% * #### ##?????? | | ???????????????# a a %a !% ##??????? | | ???????????????## aa ! ##???????? | | ????????????????#### *a ######???? | | ???????????????????###a| aa a ## #???? | | ?????????????????????## aa #### #### #???? | | ??????????????????????# @ #??####??# #???? | | ?????????????????????# ## #????????# #???? | | ?????????????????????# ### #????##### #??## | | ?????????????????????## #?## ##????# #?## | | ??????????????????????### #??####?????# ####### | | ????????????????????????# #???????????# #??# | | ???????????????????????? #???????????# #??# ### | | ????????????????????????# #???????##### #### #?## | | ????????????????????????# ???????# #??? | | ????????????????????????####???????# ########??? | | ??????????????????????????????????# ??????????? | | ????????????????????????????????? ???????????? | | ??????????????????????????????? ????????????? | | ????????????????????????????? ?????????????? | | ????????????????????????????# #?????????????? | | ????????????????????????????## ###??????????????? | | ?????????????????????????????# ??????????????????? | | ?????????????????????????????#???????????????????? | | ?????????????????????????????????????????????????? | | ?????????????????????????????????????????????????? | | ?????????????????????????????????????????????????? | | ?????????????????????????????????????????????????? | | ?????????????????????????????????????????????????? | | ?????????????????????????????????????????????????? | | ?????????????????????????????????????????????????? | +----------------------------------------------------+ Best States ------------- Heat Dissipation 25 Energy Generation 10 Energy Capacity 250 Matter Stores 300 Matter Capacity 300 Sight Range 16 Terrain Scan Density 10 Evasion (%) 50 Recoil Reduction 2 Item Schematics ----------------- None Robot Schematics ------------------ None Fabricated ------------ Nothing Alien Tech Used ----------------- None Achievements -------------- None Challenges ------------ None Game ------ Seed AssaultPowerShredder Manual? 0 Play Time 00:11:12 Cumulative 52.0 hours Start 2019.10.29 @ 22:33:12 End 2019.10.29 @ 22:42:24 Sessions 1 Manual Loads 0 Difficulty Rogue Special Mode None Game No. 83 Rogue 83 Adventurer 0 Explorer 0 Win Type - Total 0 Types 0/0/0/0/0/0/0 Lore% 27 Gallery% 35 Achievement% 28 Wizard Run 0 Options --------- ASCII 0 Keyboard 0 Movement Mouse Keybinds 0 Fullscreen 1 Font 18/SmallcapsGlow Map View 76x50 Tactical HUD 1 Map Filters NONE Filters NONE Steam 1 RUN: d2e78148-7528-4646-91b2-1aa55d53aa1a